[Event "European Online Club-ch-A 2021"]
[Site "Online"]
[Date "2021.03.27"]
[Round "8.19"]
[White "Kovacs, Gabor"]
[Black "Agopov, Mikael"]
[Result "1/2-1/2"]
[ECO "D02"]
[WhiteElo "2455"]
[BlackElo "2427"]
[Annotator "ChessBase"]
[PlyCount "62"]
[EventDate "2021.03.27"]
[EventType "team-tourn"]
[EventCountry "NET"]
[SourceTitle "playchess.com"]
[Source "ChessBase"]
[SourceQuality "1"]
[TimeControl "900+5"]

1. d4 {[%emt 0:00:00]} Nf6 {[%emt 0:00:05]} 2. Nf3 {[%emt 0:00:03]} e6 {[%emt 0:00:08]} 3. Bf4 {[%emt 0:01:02]} d5 {[%emt 0:00:16]} 4. e3 {[%emt 0:00:05]} c5 {[%emt 0:00:16]} 5. c3 {[%emt 0:00:04]} Nc6 {[%emt 0:00:11]} 6. Nbd2 {[%emt 0:00:06]} cxd4 {[%emt 0:00:04]} 7. exd4 {[%emt 0:00:03]} Nh5 {[%emt 0:01:40]} 8. Bg5 {[%emt 0:00:26]} Be7 {[%emt 0:00:03]} 9. Bxe7 {[%emt 0:00:26]} Qxe7 {[%emt 0:00:01]} 10. Bb5 {[%emt 0:00:02]} Bd7 {[%emt 0:00:09]} 11. O-O {[%emt 0:00:07]} O-O {[%emt 0:00:03]} 12. Re1 {[%emt 0:00:07]} Nf4 {[%emt 0:00:28]} 13. Re3 {[%emt 0:00:27]} a6 {[%emt 0:00:20]} 14. Bxc6 {[%emt 0:00:15]} bxc6 {[%emt 0:00:02]} 15. b4 {[%emt 0:00:15]} a5 {[%emt 0:00:08]} 16. a3 {[%emt 0:00:05]} f6 {[%emt 0:00:10]} 17. Nb3 {[%emt 0:00:36]} axb4 {[%emt 0:00:04]} 18. axb4 {[%emt 0:00:04]} Rfb8 {[%emt 0:01:42]} 19. Nc5 {[%emt 0:01:59]} Bc8 {[%emt 0:00:03]} 20. g3 {[%emt 0:01:11]} Ng6 {[%emt 0:00:04]} 21. h4 {[%emt 0:00:04]} Nf8 {[%emt 0:00:08]} 22. Ra4 {[%emt 0:01:01]} Ra7 {[%emt 0:00:16]} 23. Kg2 {[%emt 0:01:49]} Rba8 {[%emt 0:00:04]} 24. Re1 {[%emt 0:01:05]} Rxa4 {[%emt 0:00:45]} 25. Nxa4 {[%emt 0:00:03]} Qa7 {[%emt 0:00:03]} 26. Nc5 {[%emt 0:00:01]} Qa3 {[%emt 0:00:10]} 27. Qd3 {[%emt 0:00:29]} Qb2 {[%emt 0:00:31]} 28. Re2 {[%emt 0:00:07]} Qa1 {[%emt 0:00:16]} 29. Re1 {[%emt 0:00:01]} Qb2 {[%emt 0:00:07]} 30. Re2 {[%emt 0:00:40]} Qa1 {[%emt 0:00:03]} 31. Re1 {[%emt 0:00:02]} Qb2 {[%emt 0:00:06]} 1/2-1/2

[Event "European Online Club-ch-A 2021"]
[Site "Online"]
[Date "2021.03.27"]
[Round "8.20"]
[White "Noetzel, Felix"]
[Black "Csonka, Attila Istvan"]
[Result "0-1"]
[ECO "B48"]
[WhiteElo "2263"]
[BlackElo "2362"]
[Annotator "NA"]
[PlyCount "96"]
[EventDate "2021.03.27"]
[EventType "team-tourn"]
[EventCountry "NET"]
[SourceTitle "playchess.com"]
[Source "ChessBase"]
[SourceQuality "1"]
[TimeControl "900+5"]

1. e4 {[%emt 0:00:00]} c5 {[%emt 0:00:04]} 2. Nf3 {[%emt 0:00:03]} e6 {[%emt 0:00:02]} 3. d4 {[%emt 0:00:01]} cxd4 {[%emt 0:00:02]} 4. Nxd4 {[%emt 0:00:01]} Nc6 {[%emt 0:00:02]} 5. Nc3 {[%emt 0:00:03]} Qc7 {[%emt 0:00:02]} 6. Be3 {[%emt 0:00:05]} a6 {[%emt 0:00:02]} 7. Qd2 {[%emt 0:00:04]} Nf6 {[%emt 0:00:19]} 8. f3 {[%emt 0:01:00]} Be7 {[%emt 0:00:15]} 9. g4 {[%emt 0:00:42]} b5 {[%emt 0:00:26]} 10. g5 {[%emt 0:01:11]} Nh5 {[%emt 0:00:05]} 11. O-O-O {[%emt 0:00:08]} Bb7 {[%emt 0:00:06]} 12. Rg1 {[%emt 0:01:48]} Nxd4 {[%emt 0:00:26]} 13. Bxd4 {[%emt 0:00:27]} Rc8 {[%emt 0:00:37]} 14. Bd3 {[%emt 0:01:20]} O-O {[%emt 0:00:19]} 15. Ne2 {[%emt 0:00:42]} d5 {[%emt 0:00:17]} 16. e5 {[%emt 0:00:52]} g6 {[%emt 0:00:21]} 17. Ng3 {[%emt 0:00:28]} Nxg3 {[%emt 0:00:23]} 18. hxg3 {[%emt 0:00:14]} Kg7 {[%emt 0:00:13]} 19. Rh1 {[%emt 0:00:12]} Rh8 {[%emt 0:00:02]} 20. f4 {[%emt 0:00:24]} Bc5 {[%emt 0:00:04]} 21. Bxc5 {[%emt 0:00:19]} Qxc5 {[%emt 0:00:02]} 22. g4 {[%emt 0:01:08]} d4 {[%emt 0:00:25]} 23. Rh3 {[%emt 0:00:10]} Qd5 {[%emt 0:00:27]} 24. Kb1 {[%emt 0:00:33]} a5 {[%emt 0:00:05]} 25. Re1 {[%emt 0:01:31]} b4 {[%emt 0:00:49]} 26. Be4 {[%emt 0:00:21]} Qxe4 {[%emt 0:00:40]} 27. Rxe4 {[%emt 0:00:02]} Bxe4 {[%emt 0:00:04]} 28. Rh2 {[%emt 0:02:21]} Rxc2 {[%emt 0:01:39]} 29. Qxc2 {[%emt 0:00:02]} Bxc2+ {[%emt 0:00:02]} 30. Kxc2 {[%emt 0:00:59]} Rc8+ {[%emt 0:00:26]} 31. Kd3 {[%emt 0:00:02]} Rc1 {[%emt 0:00:08]} 32. Kxd4 {[%emt 0:00:06]} a4 {[%emt 0:00:10]} 33. Ke4 {[%emt 0:00:10]} a3 {[%emt 0:00:52]} 34. bxa3 {[%emt 0:00:02]} bxa3 {[%emt 0:00:03]} 35. Rh3 {[%emt 0:00:16]} Rc4+ {[%emt 0:00:03]} 36. Kd3 {[%emt 0:00:01]} Rxf4 {[%emt 0:00:02]} 37. Kc2 {[%emt 0:00:05]} Rxg4 {[%emt 0:00:06]} 38. Rxa3 {[%emt 0:00:01]} Rxg5 {[%emt 0:00:02]} 39. Re3 {[%emt 0:00:01]} h5 {[%emt 0:00:03]} 40. a4 {[%emt 0:00:01]} Rg4 {[%emt 0:00:14]} 41. Kb3 {[%emt 0:00:03]} h4 {[%emt 0:00:02]} 42. a5 {[%emt 0:00:08]} Rg3 {[%emt 0:00:07]} 43. Rxg3 {[%emt 0:00:01]} hxg3 {[%emt 0:00:02]} 44. a6 {[%emt 0:00:00]} g2 {[%emt 0:00:02]} 45. a7 {[%emt 0:00:00]} g1=Q {[%emt 0:00:03]} 46. a8=Q {[%emt 0:00:03]} Qe3+ {[%emt 0:00:02]} 47. Kc2 {[%emt 0:00:07]} Qxe5 {[%emt 0:00:03]} 48. Qd8 {[%emt 0:00:09]} g5 {[%emt 0:00:03]} 0-1

[Event "European Online Club-ch-A 2021"]
[Site "Online"]
[Date "2021.03.27"]
[Round "9.1"]
[White "Jakubowski, Krzysztof"]
[Black "Krieger, Markus"]
[Result "1-0"]
[ECO "A25"]
[WhiteElo "2497"]
[BlackElo "2050"]
[Annotator "ChessBase"]
[PlyCount "99"]
[EventDate "2021.03.27"]
[EventType "team-tourn"]
[EventCountry "NET"]
[SourceTitle "playchess.com"]
[Source "ChessBase"]
[SourceQuality "1"]
[TimeControl "900+5"]

1. c4 {[%emt 0:00:00]} e5 {[%emt 0:00:05]} 2. e3 {[%emt 0:00:06]} Nf6 {[%emt 0:00:05]} 3. Nc3 {[%emt 0:00:03]} Nc6 {[%emt 0:00:04]} 4. a3 {[%emt 0:00:07]} d5 {[%emt 0:00:06]} 5. cxd5 {[%emt 0:00:02]} Nxd5 {[%emt 0:00:00]} 6. Qc2 {[%emt 0:00:09]} Be6 {[%emt 0:00:25]} 7. Na4 {[%emt 0:01:07]} a6 {[%emt 0:02:17]} 8. b4 {[%emt 0:01:18]} Be7 {[%emt 0:01:48]} 9. Bb2 {[%emt 0:00:35]} O-O {[%emt 0:00:11]} 10. Nf3 {[%emt 0:00:08]} f6 {[%emt 0:00:19]} 11. Rc1 {[%emt 0:04:32]} Qd7 {[%emt 0:00:44]} 12. Be2 {[%emt 0:01:04]} Rfd8 {[%emt 0:01:43]} 13. O-O {[%emt 0:00:21]} Rac8 {[%emt 0:00:52]} 14. Rfd1 {[%emt 0:00:33]} Qe8 {[%emt 0:02:09]} 15. b5 {[%emt 0:01:23]} Nb8 {[%emt 0:01:36]} 16. bxa6 {[%emt 0:00:17]} Nxa6 {[%emt 0:00:08]} 17. d4 {[%emt 0:00:13]} exd4 {[%emt 0:00:45]} 18. Bxa6 {[%emt 0:02:03]} bxa6 {[%emt 0:00:05]} 19. Nxd4 {[%emt 0:00:03]} Bf7 {[%emt 0:00:53]} 20. Nc5 {[%emt 0:00:37]} Bxc5 {[%emt 0:00:09]} 21. Qxc5 {[%emt 0:00:03]} Rb8 {[%emt 0:00:47]} 22. Ba1 {[%emt 0:00:15]} Rd6 {[%emt 0:00:30]} 23. Nf5 {[%emt 0:00:15]} Rd7 {[%emt 0:00:13]} 24. Rd4 {[%emt 0:00:53]} Rb5 {[%emt 0:00:08]} 25. Qc6 {[%emt 0:00:18]} Rb6 {[%emt 0:00:11]} 26. Qa4 {[%emt 0:00:09]} Be6 {[%emt 0:00:15]} 27. Ng3 {[%emt 0:00:17]} Rbd6 {[%emt 0:00:22]} 28. h4 {[%emt 0:00:07]} h6 {[%emt 0:00:20]} 29. Ne4 {[%emt 0:00:03]} Rb6 {[%emt 0:00:05]} 30. Nc5 {[%emt 0:00:02]} Re7 {[%emt 0:00:02]} 31. Qxe8+ {[%emt 0:00:03]} Rxe8 {[%emt 0:00:03]} 32. Nxe6 {[%emt 0:00:02]} Rbxe6 {[%emt 0:00:03]} 33. Rxd5 {[%emt 0:00:02]} Re4 {[%emt 0:00:04]} 34. h5 {[%emt 0:00:03]} Ra4 {[%emt 0:00:03]} 35. Rd3 {[%emt 0:00:06]} Re7 {[%emt 0:00:03]} 36. g3 {[%emt 0:00:06]} Kf7 {[%emt 0:00:04]} 37. Kg2 {[%emt 0:00:03]} Ra5 {[%emt 0:00:01]} 38. g4 {[%emt 0:00:04]} Ra4 {[%emt 0:00:02]} 39. Kg3 {[%emt 0:00:02]} Ree4 {[%emt 0:00:11]} 40. Bd4 {[%emt 0:00:03]} Re7 {[%emt 0:00:10]} 41. Rdc3 {[%emt 0:00:02]} g6 {[%emt 0:00:10]} 42. Rc6 {[%emt 0:00:11]} gxh5 {[%emt 0:00:10]} 43. Rxf6+ {[%emt 0:00:03]} Ke8 {[%emt 0:00:01]} 44. gxh5 {[%emt 0:00:03]} Rxa3 {[%emt 0:00:05]} 45. Rxh6 {[%emt 0:00:04]} Ra2 {[%emt 0:00:05]} 46. Rg6 {[%emt 0:00:06]} a5 {[%emt 0:00:05]} 47. h6 {[%emt 0:00:03]} Rf7 {[%emt 0:00:01]} 48. f4 {[%emt 0:00:05]} Rd7 {[%emt 0:00:09]} 49. Rg8+ {[%emt 0:00:03]} Kf7 {[%emt 0:00:03]} 50. Rg7+ {[%emt 0:00:02]} 1-0

[Event "European Online Club-ch-A 2021"]
[Site "Online"]
[Date "2021.03.27"]
[Round "9.2"]
[White "Ferster, Fabian"]
[Black "Schmidek, Emil"]
[Result "0-1"]
[ECO "D31"]
[WhiteElo "2149"]
[BlackElo "2402"]
[Annotator "NA"]
[PlyCount "22"]
[EventDate "2021.03.27"]
[EventType "team-tourn"]
[EventCountry "NET"]
[SourceTitle "playchess.com"]
[Source "ChessBase"]
[SourceQuality "1"]
[TimeControl "900+5"]

1. c4 {[%emt 0:00:00]} e6 {[%emt 0:00:03]} 2. Nc3 {[%emt 0:00:02]} d5 {[%emt 0:00:01]} 3. d4 {[%emt 0:00:02]} a6 {[%emt 0:00:02]} 4. Nf3 {[%emt 0:00:28]} dxc4 {[%emt 0:00:04]} 5. e4 {[%emt 0:00:02]} b5 {[%emt 0:00:29]} 6. a4 {[%emt 0:00:01]} b4 {[%emt 0:00:14]} 7. Na2 {[%emt 0:00:03]} Bb7 {[%emt 0:01:18]} 8. Bxc4 {[%emt 0:00:11]} Bxe4 {[%emt 0:00:08]} 9. O-O {[%emt 0:00:02]} Nf6 {[%emt 0:00:11]} 10. Qb3 {[%emt 0:00:47]} Nc6 {[%emt 0:00:25]} 11. Ng5 {[%emt 0:01:03]} Na5 {[%emt 0:01:13]} 0-1

[Event "European Online Club-ch-A 2021"]
[Site "Online"]
[Date "2021.03.27"]
[Round "9.3"]
[White "Wintzer, Joachim"]
[Black "Frick, Renato"]
[Result "1-0"]
[ECO "D94"]
[WhiteElo "2274"]
[BlackElo "1947"]
[Annotator "NA"]
[PlyCount "61"]
[EventDate "2021.03.27"]
[EventType "team-tourn"]
[EventCountry "NET"]
[SourceTitle "playchess.com"]
[Source "ChessBase"]
[SourceQuality "1"]
[TimeControl "900+5"]

1. d4 {[%emt 0:00:00]} Nf6 {[%emt 0:00:04]} 2. c4 {[%emt 0:00:04]} g6 {[%emt 0:00:04]} 3. Nf3 {[%emt 0:00:05]} Bg7 {[%emt 0:00:04]} 4. e3 {[%emt 0:00:01]} c6 {[%emt 0:00:14]} 5. Nc3 {[%emt 0:00:05]} d5 {[%emt 0:00:01]} 6. Bd3 {[%emt 0:00:03]} Nbd7 {[%emt 0:00:05]} 7. O-O {[%emt 0:00:13]} dxc4 {[%emt 0:00:06]} 8. Bxc4 {[%emt 0:00:01]} Nb6 {[%emt 0:00:04]} 9. Bb3 {[%emt 0:00:11]} Nbd5 {[%emt 0:00:04]} 10. Re1 {[%emt 0:01:17]} Bg4 {[%emt 0:00:34]} 11. h3 {[%emt 0:00:05]} Bxf3 {[%emt 0:01:04]} 12. Qxf3 {[%emt 0:00:02]} O-O {[%emt 0:00:24]} 13. e4 {[%emt 0:00:17]} Nb6 {[%emt 0:00:31]} 14. Be3 {[%emt 0:00:29]} a5 {[%emt 0:00:37]} 15. a3 {[%emt 0:00:05]} Nfd7 {[%emt 0:00:41]} 16. Rad1 {[%emt 0:00:07]} Qc7 {[%emt 0:00:12]} 17. Rc1 {[%emt 0:02:36]} a4 {[%emt 0:02:07]} 18. Ba2 {[%emt 0:00:04]} Qb8 {[%emt 0:00:09]} 19. Red1 {[%emt 0:00:27]} Ra5 {[%emt 0:00:11]} 20. Qe2 {[%emt 0:00:42]} Re8 {[%emt 0:01:45]} 21. f4 {[%emt 0:00:03]} e6 {[%emt 0:00:19]} 22. Qf3 {[%emt 0:00:25]} Nf6 {[%emt 0:00:45]} 23. Kh1 {[%emt 0:00:25]} Nbd7 {[%emt 0:00:22]} 24. g4 {[%emt 0:00:19]} c5 {[%emt 0:00:45]} 25. e5 {[%emt 0:00:19]} Nd5 {[%emt 0:00:56]} 26. Nxd5 {[%emt 0:00:19]} exd5 {[%emt 0:00:11]} 27. Qxd5 {[%emt 0:00:17]} Nb6 {[%emt 0:00:41]} 28. Qxf7+ {[%emt 0:00:09]} Kh8 {[%emt 0:00:01]} 29. dxc5 {[%emt 0:00:59]} Rf8 {[%emt 0:00:11]} 30. Qe6 {[%emt 0:00:03]} Na8 {[%emt 0:00:16]} 31. Rd7 {[%emt 0:00:15]} 1-0

[Event "European Online Club-ch-A 2021"]
[Site "Online"]
[Date "2021.03.27"]
[Round "9.4"]
[White "Weissenhofer, Jonas"]
[Black "Noetzel, Felix"]
[Result "0-1"]
[ECO "B21"]
[WhiteElo "1719"]
[BlackElo "2263"]
[Annotator "NA"]
[PlyCount "89"]
[EventDate "2021.03.27"]
[EventType "team-tourn"]
[EventCountry "NET"]
[SourceTitle "playchess.com"]
[Source "ChessBase"]
[SourceQuality "1"]
[TimeControl "900+5"]

1. e4 {[%emt 0:00:00]} c5 {[%emt 0:00:06]} 2. d4 {[%emt 0:00:02]} cxd4 {[%emt 0:00:02]} 3. c3 {[%emt 0:00:01]} dxc3 {[%emt 0:00:02]} 4. Nxc3 {[%emt 0:00:01]} Nc6 {[%emt 0:00:03]} 5. Nf3 {[%emt 0:00:01]} e6 {[%emt 0:00:02]} 6. Bc4 {[%emt 0:00:06]} Qc7 {[%emt 0:00:03]} 7. Qe2 {[%emt 0:00:12]} Nf6 {[%emt 0:00:03]} 8. O-O {[%emt 0:00:12]} Ng4 {[%emt 0:00:05]} 9. Rd1 {[%emt 0:00:36]} Bc5 {[%emt 0:00:08]} 10. Be3 {[%emt 0:01:07]} Nxe3 {[%emt 0:00:41]} 11. fxe3 {[%emt 0:00:01]} O-O {[%emt 0:01:32]} 12. Nd4 {[%emt 0:01:10]} a6 {[%emt 0:00:32]} 13. Bb3 {[%emt 0:02:13]} b5 {[%emt 0:01:17]} 14. Rac1 {[%emt 0:00:29]} Qa7 {[%emt 0:01:12]} 15. Qf2 {[%emt 0:01:21]} Bb7 {[%emt 0:01:50]} 16. Bc2 {[%emt 0:00:52]} Ne5 {[%emt 0:01:32]} 17. Kh1 {[%emt 0:02:20]} Rac8 {[%emt 0:01:03]} 18. Qg3 {[%emt 0:01:17]} d6 {[%emt 0:00:12]} 19. Bb3 {[%emt 0:01:37]} Rfe8 {[%emt 0:03:47]} 20. Qf4 {[%emt 0:01:46]} Ba8 {[%emt 0:00:52]} 21. a4 {[%emt 0:00:14]} b4 {[%emt 0:00:10]} 22. Nce2 {[%emt 0:00:06]} Qb7 {[%emt 0:00:53]} 23. Ng3 {[%emt 0:00:23]} Qe7 {[%emt 0:00:16]} 24. Nf3 {[%emt 0:00:36]} Ng6 {[%emt 0:00:11]} 25. Qg4 {[%emt 0:00:08]} Bxe3 {[%emt 0:00:05]} 26. Rxc8 {[%emt 0:00:03]} Rxc8 {[%emt 0:00:03]} 27. Nh5 {[%emt 0:00:09]} a5 {[%emt 0:00:19]} 28. Re1 {[%emt 0:00:06]} Ba7 {[%emt 0:00:05]} 29. e5 {[%emt 0:00:04]} Bxf3 {[%emt 0:00:05]} 30. Qxf3 {[%emt 0:00:02]} dxe5 {[%emt 0:00:04]} 31. Qg4 {[%emt 0:00:03]} Qc5 {[%emt 0:00:10]} 32. Rf1 {[%emt 0:00:07]} Qd4 {[%emt 0:00:04]} 33. Qg3 {[%emt 0:00:11]} e4 {[%emt 0:00:06]} 34. Qg4 {[%emt 0:00:02]} e3 {[%emt 0:00:03]} 35. Qe2 {[%emt 0:00:08]} Qd2 {[%emt 0:00:06]} 36. Bd1 {[%emt 0:00:07]} Qxe2 {[%emt 0:00:02]} 37. Bxe2 {[%emt 0:00:00]} Rc2 {[%emt 0:00:08]} 38. Ng3 {[%emt 0:00:04]} e5 {[%emt 0:00:06]} 39. Rd1 {[%emt 0:00:05]} h6 {[%emt 0:00:02]} 40. Rd8+ {[%emt 0:00:03]} Kh7 {[%emt 0:00:01]} 41. Rd7 {[%emt 0:00:02]} Bd4 {[%emt 0:00:05]} 42. Rxf7 {[%emt 0:00:03]} Rc1+ {[%emt 0:00:02]} 43. Bf1 {[%emt 0:00:10]} Nf4 {[%emt 0:00:04]} 44. Kg1 {[%emt 0:00:08]} e2+ {[%emt 0:00:05]} 45. Kh1 {[%emt 0:00:01]} 0-1

[Event "European Online Club-ch-A 2021"]
[Site "Online"]
[Date "2021.03.27"]
[Round "9.5"]
[White "Zavgorodniy, Sergiy"]
[Black "Hera, Imre Jr."]
[Result "1/2-1/2"]
[ECO "B40"]
[WhiteElo "2418"]
[BlackElo "2610"]
[Annotator "ChessBase"]
[PlyCount "156"]
[EventDate "2021.03.27"]
[EventType "team-tourn"]
[EventCountry "NET"]
[SourceTitle "playchess.com"]
[Source "ChessBase"]
[SourceQuality "1"]
[TimeControl "900+5"]

1. e4 {[%emt 0:00:00]} c5 {[%emt 0:00:03]} 2. Nf3 {[%emt 0:00:03]} e6 {[%emt 0:00:02]} 3. b3 {[%emt 0:00:06]} b6 {[%emt 0:00:03]} 4. Bb2 {[%emt 0:00:16]} Bb7 {[%emt 0:00:03]} 5. d3 {[%emt 0:00:02]} Nf6 {[%emt 0:00:06]} 6. Nbd2 {[%emt 0:00:03]} d6 {[%emt 0:00:41]} 7. g3 {[%emt 0:00:13]} Be7 {[%emt 0:00:03]} 8. Bg2 {[%emt 0:00:02]} O-O {[%emt 0:00:02]} 9. O-O {[%emt 0:00:02]} Nc6 {[%emt 0:00:05]} 10. Re1 {[%emt 0:00:04]} Qc7 {[%emt 0:00:05]} 11. e5 {[%emt 0:00:42]} dxe5 {[%emt 0:00:06]} 12. Nxe5 {[%emt 0:00:03]} Nd4 {[%emt 0:01:06]} 13. Bxb7 {[%emt 0:03:49]} Qxb7 {[%emt 0:00:04]} 14. Ndf3 {[%emt 0:00:03]} Nxf3+ {[%emt 0:02:03]} 15. Qxf3 {[%emt 0:00:38]} Qxf3 {[%emt 0:00:03]} 16. Nxf3 {[%emt 0:00:02]} Nd5 {[%emt 0:00:01]} 17. a3 {[%emt 0:00:16]} Rac8 {[%emt 0:00:07]} 18. c4 {[%emt 0:00:17]} Bf6 {[%emt 0:00:40]} 19. Bxf6 {[%emt 0:00:13]} Nxf6 {[%emt 0:00:03]} 20. d4 {[%emt 0:00:05]} Rfd8 {[%emt 0:00:02]} 21. Rad1 {[%emt 0:00:28]} Kf8 {[%emt 0:00:10]} 22. dxc5 {[%emt 0:01:29]} Rxd1 {[%emt 0:00:24]} 23. Rxd1 {[%emt 0:00:06]} Rxc5 {[%emt 0:00:04]} 24. Rd8+ {[%emt 0:00:34]} Ke7 {[%emt 0:00:17]} 25. Ra8 {[%emt 0:00:02]} a5 {[%emt 0:00:17]} 26. Ra7+ {[%emt 0:00:43]} Ke8 {[%emt 0:00:27]} 27. Nd4 {[%emt 0:02:12]} Ne4 {[%emt 0:02:07]} 28. Ra6 {[%emt 0:01:02]} Nd2 {[%emt 0:02:24]} 29. f4 {[%emt 0:01:14]} e5 {[%emt 0:02:53]} 30. fxe5 {[%emt 0:00:07]} Rxe5 {[%emt 0:00:03]} 31. Rxb6 {[%emt 0:00:09]} a4 {[%emt 0:00:02]} 32. Rb8+ {[%emt 0:00:21]} Kd7 {[%emt 0:00:02]} 33. Rb7+ {[%emt 0:00:13]} Kc8 {[%emt 0:00:47]} 34. Rxf7 {[%emt 0:00:05]} axb3 {[%emt 0:00:15]} 35. Nxb3 {[%emt 0:00:03]} Nxb3 {[%emt 0:00:02]} 36. Rxg7 {[%emt 0:00:01]} h6 {[%emt 0:00:09]} 37. Kg2 {[%emt 0:00:17]} Nd2 {[%emt 0:00:05]} 38. Rg6 {[%emt 0:00:20]} h5 {[%emt 0:00:54]} 39. g4 {[%emt 0:00:24]} hxg4 {[%emt 0:00:30]} 40. Rxg4 {[%emt 0:00:06]} Re2+ {[%emt 0:00:01]} 41. Kg3 {[%emt 0:00:19]} Nf1+ {[%emt 0:00:19]} 42. Kf4 {[%emt 0:00:06]} Rxh2 {[%emt 0:00:07]} 43. Rg7 {[%emt 0:00:08]} Rc2 {[%emt 0:00:03]} 44. Ke4 {[%emt 0:00:06]} Rxc4+ {[%emt 0:00:03]} 45. Kd3 {[%emt 0:00:02]} Ra4 {[%emt 0:00:05]} 46. Ke2 {[%emt 0:00:06]} Nh2 {[%emt 0:00:02]} 47. Kf2 {[%emt 0:00:13]} Ng4+ {[%emt 0:00:05]} 48. Ke2 {[%emt 0:00:02]} Ne5 {[%emt 0:00:03]} 49. Kd2 {[%emt 0:00:04]} Rxa3 {[%emt 0:00:07]} 50. Kc2 {[%emt 0:00:03]} Nd7 {[%emt 0:00:06]} 51. Kb2 {[%emt 0:00:02]} Rh3 {[%emt 0:00:02]} 52. Kc2 {[%emt 0:00:02]} Kc7 {[%emt 0:00:02]} 53. Rg6 {[%emt 0:00:06]} Ne5 {[%emt 0:00:02]} 54. Re6 {[%emt 0:00:03]} Nc6 {[%emt 0:00:02]} 55. Rg6 {[%emt 0:00:03]} Kb6 {[%emt 0:00:02]} 56. Rg8 {[%emt 0:00:07]} Kc5 {[%emt 0:00:03]} 57. Rc8 {[%emt 0:00:04]} Kd5 {[%emt 0:00:02]} 58. Kd2 {[%emt 0:00:03]} Ne5 {[%emt 0:00:04]} 59. Rd8+ {[%emt 0:00:05]} Ke4 {[%emt 0:00:01]} 60. Re8 {[%emt 0:00:01]} Rd3+ {[%emt 0:00:10]} 61. Kc2 {[%emt 0:00:02]} Rd5 {[%emt 0:00:07]} 62. Kc3 {[%emt 0:00:03]} Rc5+ {[%emt 0:00:07]} 63. Kb4 {[%emt 0:00:06]} Rc7 {[%emt 0:00:07]} 64. Kb5 {[%emt 0:00:12]} Kd5 {[%emt 0:00:08]} 65. Kb4 {[%emt 0:00:05]} Nc6+ {[%emt 0:00:06]} 66. Kb3 {[%emt 0:00:06]} Nd4+ {[%emt 0:00:02]} 67. Kb4 {[%emt 0:00:21]} Rc4+ {[%emt 0:00:09]} 68. Ka3 {[%emt 0:00:11]} Rc3+ {[%emt 0:00:25]} 69. Kb2 {[%emt 0:00:09]} Rb3+ {[%emt 0:00:04]} 70. Ka2 {[%emt 0:00:04]} Kc4 {[%emt 0:00:06]} 71. Rc8+ {[%emt 0:00:08]} Kd3 {[%emt 0:00:04]} 72. Rd8 {[%emt 0:00:03]} Rb6 {[%emt 0:00:18]} 73. Ka3 {[%emt 0:00:18]} Kc3 {[%emt 0:00:10]} 74. Rc8+ {[%emt 0:00:04]} Nc6 {[%emt 0:00:02]} 75. Ka4 {[%emt 0:00:10]} Kc4 {[%emt 0:00:09]} 76. Ka3 {[%emt 0:00:02]} Kc3 {[%emt 0:00:07]} 77. Ka4 {[%emt 0:00:03]} Kc4 {[%emt 0:00:05]} 78. Ka3 {[%emt 0:00:01]} Kc3 {[%emt 0:00:09]} 1/2-1/2

[Event "European Online Club-ch-A 2021"]
[Site "Online"]
[Date "2021.03.27"]
[Round "9.6"]
[White "Nemeth, Miklos"]
[Black "Grinev, Valeriy"]
[Result "0-1"]
[ECO "B42"]
[WhiteElo "2488"]
[BlackElo "2441"]
[Annotator "ChessBase"]
[PlyCount "128"]
[EventDate "2021.03.27"]
[EventType "team-tourn"]
[EventCountry "NET"]
[SourceTitle "playchess.com"]
[Source "ChessBase"]
[SourceQuality "1"]
[TimeControl "900+5"]

1. e4 {[%emt 0:00:00]} c5 {[%emt 0:00:03]} 2. Nf3 {[%emt 0:00:03]} e6 {[%emt 0:00:02]} 3. d4 {[%emt 0:00:02]} cxd4 {[%emt 0:00:01]} 4. Nxd4 {[%emt 0:00:02]} a6 {[%emt 0:00:01]} 5. Bd3 {[%emt 0:00:03]} Bc5 {[%emt 0:00:03]} 6. Nb3 {[%emt 0:00:01]} Be7 {[%emt 0:00:01]} 7. c4 {[%emt 0:00:03]} d6 {[%emt 0:00:03]} 8. Nc3 {[%emt 0:00:02]} Nf6 {[%emt 0:00:03]} 9. Be3 {[%emt 0:00:04]} b6 {[%emt 0:00:10]} 10. O-O {[%emt 0:00:02]} Bb7 {[%emt 0:00:02]} 11. a4 {[%emt 0:00:11]} Nc6 {[%emt 0:00:07]} 12. f4 {[%emt 0:00:25]} O-O {[%emt 0:00:10]} 13. Qe2 {[%emt 0:00:39]} Rc8 {[%emt 0:00:41]} 14. Rac1 {[%emt 0:01:40]} Nd7 {[%emt 0:00:31]} 15. Bb1 {[%emt 0:00:30]} Nc5 {[%emt 0:00:36]} 16. Nxc5 {[%emt 0:00:17]} bxc5 {[%emt 0:00:03]} 17. Qh5 {[%emt 0:02:40]} Bf6 {[%emt 0:01:49]} 18. e5 {[%emt 0:00:56]} g6 {[%emt 0:00:03]} 19. Qh3 {[%emt 0:00:04]} dxe5 {[%emt 0:00:06]} 20. Bxc5 {[%emt 0:00:34]} Be7 {[%emt 0:04:53]} 21. Be3 {[%emt 0:01:19]} f5 {[%emt 0:00:17]} 22. Rfd1 {[%emt 0:00:50]} Qa5 {[%emt 0:00:53]} 23. Rd7 {[%emt 0:00:23]} exf4 {[%emt 0:00:51]} 24. Bxf4 {[%emt 0:00:13]} Qb6+ {[%emt 0:01:46]} 25. Kh1 {[%emt 0:00:46]} Rfd8 {[%emt 0:00:29]} 26. c5 {[%emt 0:00:59]} Qxb2 {[%emt 0:00:13]} 27. Ba2 {[%emt 0:00:07]} Rxd7 {[%emt 0:01:09]} 28. Bxe6+ {[%emt 0:00:06]} Kh8 {[%emt 0:00:01]} 29. Bxd7 {[%emt 0:00:09]} Rd8 {[%emt 0:00:02]} 30. Rb1 {[%emt 0:00:57]} Qf2 {[%emt 0:00:33]} 31. Be3 {[%emt 0:00:59]} Qc2 {[%emt 0:00:03]} 32. Rxb7 {[%emt 0:00:05]} Qxc3 {[%emt 0:00:10]} 33. Bg1 {[%emt 0:00:16]} Qc1 {[%emt 0:01:10]} 34. Qe3 {[%emt 0:01:24]} Qxe3 {[%emt 0:00:08]} 35. Bxe3 {[%emt 0:00:02]} Nb8 {[%emt 0:00:17]} 36. c6 {[%emt 0:00:19]} Nxc6 {[%emt 0:00:02]} 37. g3 {[%emt 0:00:07]} Ne5 {[%emt 0:00:02]} 38. Bd4 {[%emt 0:00:25]} Bf6 {[%emt 0:00:02]} 39. Bxe5 {[%emt 0:00:13]} Bxe5 {[%emt 0:00:02]} 40. Kg2 {[%emt 0:00:07]} a5 {[%emt 0:00:15]} 41. Kf3 {[%emt 0:00:02]} h5 {[%emt 0:00:07]} 42. h3 {[%emt 0:00:06]} Kg8 {[%emt 0:00:05]} 43. Be6+ {[%emt 0:00:04]} Kh8 {[%emt 0:00:08]} 44. Bd7 {[%emt 0:00:04]} Rf8 {[%emt 0:00:03]} 45. Rb5 {[%emt 0:00:09]} Bc3 {[%emt 0:00:02]} 46. Rb7 {[%emt 0:00:04]} Kg7 {[%emt 0:00:03]} 47. Bb5+ {[%emt 0:00:09]} Kh6 {[%emt 0:00:02]} 48. Rb6 {[%emt 0:00:03]} Be5 {[%emt 0:00:02]} 49. Re6 {[%emt 0:00:04]} Bb8 {[%emt 0:00:01]} 50. Re8 {[%emt 0:00:10]} Rxe8 {[%emt 0:00:04]} 51. Bxe8 {[%emt 0:00:04]} Kg5 {[%emt 0:00:01]} 52. h4+ {[%emt 0:00:06]} Kf6 {[%emt 0:00:02]} 53. Bb5 {[%emt 0:00:03]} Be5 {[%emt 0:00:02]} 54. Be8 {[%emt 0:00:02]} Bc3 {[%emt 0:00:03]} 55. Kf2 {[%emt 0:00:04]} f4 {[%emt 0:00:08]} 56. gxf4 {[%emt 0:00:02]} Kf5 {[%emt 0:00:01]} 57. Kf3 {[%emt 0:00:02]} Be1 {[%emt 0:00:02]} 58. Bd7+ {[%emt 0:00:09]} Kf6 {[%emt 0:00:03]} 59. Bh3 {[%emt 0:00:05]} Bxh4 {[%emt 0:00:01]} 60. Bc8 {[%emt 0:00:02]} Be1 {[%emt 0:00:02]} 61. Bh3 {[%emt 0:00:03]} Bd2 {[%emt 0:00:01]} 62. Bc8 {[%emt 0:00:02]} Kg7 {[%emt 0:00:07]} 63. Bh3 {[%emt 0:00:03]} Kh6 {[%emt 0:00:01]} 64. Be6 {[%emt 0:00:02]} h4 {[%emt 0:00:01]} 0-1